Workbook

Sheet Macro1 (hidden)

Sheet Required information for NPV
A1: Necessary Details For NPV E-auction : | B1: Below are the necessary details for the NPV E-Auction. Based on your provided details, we will create and provide you with a screen for adding bids for (Resolution Applicant) | C1: Site URL : https://www.eauctions.co.in Email ID : admin@eauctions.co.in
A2: Questions | B2: Answers
A3: Auctioneer Name & Auctioneer Email ID (Not CIRP Email) | B3: ? | C3: Debtor Name & Email Id (CIRP) | D3: ?
A4: NPV Auction Title | B4: ? | C4: Debtor Address | D4: ?
A5: E-auction start and end dates and times | B5: ? | C5: EMD Date (optional) | D5: ?
A6: Reserve Price / Start Price / Base Price | B6: ? | C6: EMD Amount ( optional) | D6: ?
A7: Incremental Amount | B7: ? | C7: Incremental Type ? | D7: Minimal Increment / Fixed Increment
A8: Incremental Type | B8: Only Base Value / Both ( Base Value & NPV Value) / Bid as NPV with Increment ( Most Used) | C8: First Bid Acceptance ? | D8: Reserve Price / Reserve Price + Increment Price
A9: Upfront payment? | B9: Yes / No (Upfront payment days E.g 30, 45, 90 )
A10: Number Of Period | B10: 24 Months / 12 Quarters / 5 years | C10: If you enter a value in B10 (e.g., 12 Months), the Excel will automatically create 12 rows in the PVIF table. The same logic applies for Quarters and Years, where rows are generated based on the selected period
A11: Name Of Category Of Creditors | B11: Examples: CIRP Cost, Financial Creditors, Operational Creditors, Government Dues
A12: Number of Minutes E-Auction extended | B12: 10 Minutes / 15 Minutes / 30 Minutes | C12: Recommended : 15 minutes with unlimited extension of 15 minutes each
A14: Resolution plan e-bidding plan please do provider information like | B14: PVIF ( You can take Reference PVIF calculation sheet ) | C14: PVIF (%)
A15: Month 1
A16: Month 2
A17: Month 3
A18: Month 4
A19: Month 5
A20: Month 6
A21: Month 7
A22: Month 8
A23: Month 9
A24: Month 10
A25: Month 11
A26: Month 12
A27: Month 13
A28: Month 14
A29: Month 15
A30: Month 16
A31: Month 17
A32: Month 18
A33: Month 19
A34: Month 20
A35: Month 21
A36: Month 22
A37: Month 23
A38: Month 24

Sheet PRAs DETAIL FORMAT
A1: Sr. No | B1: Company Name | C1: Bidder / Contact Person Name | D1: Email ID | E1: Mobile No | F1: PAN Card
A2: 1
A3: 2
A4: 3
A5: 4
A6: 5
A7: 6

Sheet Reference PVIF calculation
A1: Day | B1: PVIF (@10%) | C1: PVIF (@12%) | D1: PVIF (@15%) | E1: PVIF (@20%)
A2: 0 | B2: =1/(1+0.1)^(0/360) -> 1 | C2: =1/(1+0.12)^(0/360) -> 1 | D2: =1/(1+0.15)^(0/360) -> 1 | E2: =1/(1+0.2)^(0/360) -> 1
A3: 30 | B3: =1/(1+0.1)^(30/360) -> 0.9920889434 | C3: =1/(1+0.12)^(30/360) -> 0.9906003979 | D3: =ROUND(1/(1+0.15)^(+A3/360),4) -> 0.9884 | E3: =ROUND(1/(1+0.2)^(+A3/360),4) -> 0.9849
A4: 60 | B4: =ROUND(1/(1+0.1)^(+A4/360),4) -> 0.9842 | C4: =ROUND(1/(1+0.12)^(+A4/360),4) -> 0.9813 | D4: =ROUND(1/(1+0.15)^(+A4/360),4) -> 0.977 | E4: =ROUND(1/(1+0.2)^(+A4/360),4) -> 0.9701
A5: 90 | B5: =ROUND(1/(1+0.1)^(+A5/360),4) -> 0.9765 | C5: =1/(1+0.12)^(+A5/360) -> 0.9720654209 | D5: 0.9657 | E5: 0.9554
A6: 120 | B6: 0.9687 | C6: =1/(1+0.12)^(+A6/360) -> 0.9629283928 | D6: 0.9545 | E6: 0.941
A7: 150 | B7: 0.9611 | C7: 0.9538772491 | D7: 0.9434 | E7: 0.9268
A8: 180 | B8: 0.9535 | C8: 0.9449111825 | D8: 0.9325 | E8: 0.9129
A9: 210 | B9: 0.9459 | C9: 0.9360293934 | D9: 0.9217 | E9: 0.8991
A10: 240 | B10: 0.9384 | C10: 0.9272310896 | D10: 0.911 | E10: 0.8855
A11: 270 | B11: 0.931 | C11: 0.9185154864 | D11: 0.9005 | E11: 0.8722
A12: 300 | B12: 0.9236 | C12: 0.9098818063 | D12: 0.8901 | E12: 0.859
A13: 330 | B13: 0.9163 | C13: 0.9013292794 | D13: 0.8798 | E13: 0.8461
A14: 360 | B14: 0.9091 | C14: 0.8928571429 | D14: 0.8696 | E14: 0.8333
A15: 390 | B15: 0.9019 | C15: 0.884464641 | D15: 0.8595 | E15: 0.8208
A16: 420 | B16: 0.8948 | C16: 0.8761510254 | D16: 0.8495 | E16: 0.8084
A17: 450 | B17: 0.8877 | C17: 0.8679155544 | D17: 0.8397 | E17: 0.7962
A18: 480 | B18: 0.8807 | C18: 0.8597574936 | D18: 0.83 | E18: 0.7842
A19: 510 | B19: 0.8737 | C19: 0.8516761152 | D19: 0.8204 | E19: 0.7724
A20: 540 | B20: 0.8668 | C20: 0.8436706987 | D20: 0.8109 | E20: 0.7607
A21: 570 | B21: 0.8599 | C21: 0.8357405298 | D21: 0.8015 | E21: 0.7493
A22: 600 | B22: 0.8531 | C22: 0.8278849014 | D22: 0.7922 | E22: 0.738
A23: 630 | B23: 0.8464 | C23: 0.8201031128 | D23: 0.783 | E23: 0.7268
A24: 660 | B24: 0.8397 | C24: 0.8123944699 | D24: 0.774 | E24: 0.7159
A25: 690 | B25: 0.833 | C25: 0.8047582852 | D25: 0.765 | E25: 0.7051
A26: 720 | B26: 0.8264 | C26: 0.7971938776 | D26: 0.7561 | E26: 0.6944
A27: 750 | B27: 0.8199 | C27: 0.7897005723 | D27: 0.7474 | E27: 0.684
A28: 780 | B28: 0.8134 | C28: 0.7822777012 | D28: 0.7387 | E28: 0.6737
A29: 810 | B29: 0.807 | C29: 0.7749246021 | D29: 0.7302 | E29: 0.6635
A30: 840 | B30: 0.8006 | C30: 0.7676406192 | D30: 0.7217 | E30: 0.6535
A31: 870 | B31: 0.7943 | C31: 0.7604251029 | D31: 0.7134 | E31: 0.6436
A32: 900 | B32: 0.788 | C32: 0.7532774095 | D32: 0.7051 | E32: 0.6339
A33: 930 | B33: 0.7818 | C33: 0.7461969016 | D33: 0.6969 | E33: 0.6244
A34: 960 | B34: 0.7756 | C34: 0.7391829477 | D34: 0.6889 | E34: 0.615
A35: 990 | B35: 0.7694 | C35: 0.7322349222 | D35: 0.6809 | E35: 0.6057
A36: 1020 | B36: 0.7633 | C36: 0.7253522053 | D36: 0.673 | E36: 0.5966
A37: 1050 | B37: 0.7573 | C37: 0.7185341832 | D37: 0.6652 | E37: 0.5876
A38: 1080 | B38: 0.7513 | C38: 0.7117802478 | D38: 0.6575 | E38: 0.5787
A39: 1110 | B39: 0.7454 | C39: 0.7050897967 | D39: 0.6499 | E39: 0.57
A40: 1140 | B40: 0.7395 | C40: 0.6984622332 | D40: 0.6424 | E40: 0.5614
A41: 1170 | B41: 0.7336 | C41: 0.6918969662 | D41: 0.6349 | E41: 0.5529
A42: 1200 | B42: 0.7278 | C42: 0.68539341 | D42: 0.6276 | E42: 0.5446
A43: 1230 | B43: 0.7221 | C43: 0.6789509847 | D43: 0.6203 | E43: 0.5364
A44: 1260 | B44: 0.7164 | C44: 0.6725691157 | D44: 0.6131 | E44: 0.5283
A45: 1320 | B45: 0.7051 | C45: 0.6599847747 | D45: 0.599 | E45: 0.5125
A46: 1350 | B46: 0.6995 | C46: 0.6537811805 | D46: 0.5921 | E46: 0.5047
A47: 1380 | B47: 0.6939 | C47: 0.6476358976 | D47: 0.5852 | E47: 0.4971
A48: 1410 | B48: 0.6885 | C48: 0.6415483779 | D48: 0.5785 | E48: 0.4896
A49: 1440 | B49: 0.683 | C49: 0.6355180784 | D49: 0.5718 | E49: 0.4823
A50: 1470 | B50: 0.6776 | C50: 0.6295444614 | D50: 0.5651 | E50: 0.475
A51: 1500 | B51: 0.6722 | C51: 0.623626994 | D51: 0.5586 | E51: 0.4678
A52: 1530 | B52: 0.6669 | C52: 0.6177651484 | D52: 0.5521 | E52: 0.4608
A53: 1560 | B53: 0.6617 | C53: 0.6119584018 | D53: 0.5457 | E53: 0.4538
A54: 1590 | B54: 0.6564 | C54: 0.6062062364 | D54: 0.5394 | E54: 0.447
A55: 1620 | B55: 0.6512 | C55: 0.600508139 | D55: 0.5332 | E55: 0.4402
A56: 1650 | B56: 0.6461 | C56: 0.5948636014 | D56: 0.527 | E56: 0.4336
A57: 1680 | B57: 0.641 | C57: 0.5892721203 | D57: 0.5209 | E57: 0.4271
A58: 1710 | B58: 0.6359 | C58: 0.5837331969 | D58: 0.5149 | E58: 0.4206
A59: 1740 | B59: 0.6309 | C59: 0.5782463371 | D59: 0.5089 | E59: 0.4143
A60: 1770 | B60: 0.6259 | C60: 0.5728110517 | D60: 0.503 | E60: 0.408
A61: 1800 | B61: 0.6209 | C61: 0.5674268557 | D61: 0.4972 | E61: 0.4019

Sheet Incremental Type Details
A1: Incremental Type details informations
A3: Options:
A5: 1) Only Base Value
A7: 2) Both (Base Value & NPV Value)
A9: 3) Bid as NPV With Increment
A13: Description:
A15: This setting defines how bid increments are applied during the NPV auction.
A19: 1. Only Base Value
A21: Example:
A23: Reserve Price: 5,000
A25: Incremental Value: 100
A27: Process:
A29: First actual bid: 5,100 → NPV generated: 5,002
A31: Next bidder must place a base bid of 5,200 (5,100 + 100)
A32: → NPV generated: 5,100.68
A34: In this option, bidding continues by increasing only the base value, and each new NPV value must always be higher than the previous NPV.
A38: 2. Both (Base Value & NPV Value)
A40: Example:
A42: First actual bid: 5,100 → NPV generated: 5,100
A44: Next bidder places a bid of 5,250
A45: → NPV generated: 5,202 (Minimum NPV: 5,200)
A47: In this option, both base value and NPV value follow the incremental rule, and each new NPV must be higher than the last NPV by the defined increment.
A51: 3. Bid as NPV With Increment (Recommended / Most Used)
A53: Example:
A55: First bid: 5,200 → NPV generated: 5,100.68
A57: Next bidder must bid at least
A58: Last NPV (5,100.68) + Increment (100) = 5,200.68
A59: → NPV generated: 5,200.68 (Minimum: 5,200.68)
A61: In this option, bidding is done directly on NPV values, and each new bid must exceed the last NPV by the incremental value, making it the most transparent and widely used approach.

Sheet Demo Screen
A1: URL : https://eauctions.co.in | C1: 1) Auctioneer Login | Q1: Site URL : https://www.eauctions.co.in Technical contact : 98700 99713 (Nitish) Email ID : admin@eauctions.co.in
B15: AucAuctioneerioneer
C18: 2) PRAs Login
C47: 3) PRAs Demo Sheet
